bitfinex/quotes_SOLUSD_20240530
["timestamp","ask_amount","ask_price","bid_price","bid_amount"]
[1717072181024,2.2154,167.01,166.96,53.97]
[1717072181223,6.5565,167.04,166.96,53.97]
[1717072181224,6.5565,167.04,166.96,35.96]
[1717072181405,8.5416,167.03,166.98,2.2157]
[1717072181607,8.5416,167.03,166.99,2.2156]
[1717072181809,8.5416,167.03,166.98,2.2157]
[1717072182824,6.3264,167.03,166.99,2.2156]
[1717072183027,8.5415,167.03,166.99,2.2156]
[1717072183222,8.5415,167.03,166.98,2.2158]
[1717072184230,6.0768,167.0,166.96,2.216]
[1717072184744,6.91,167.09,166.95,95.96]
[1717072184937,6.91,167.07,167.01,66.91]
[1717072185113,6.91,167.09,167.04,2.2149]
[1717072185313,9.1244,167.09,167.04,2.2149]
[1717072185530,9.1244,167.09,167.03,9.1251]
[1717072186029,6.91,167.09,167.04,2.2149]
[1717072186335,6.91,167.09,166.99,35.96]
[1717072186336,16.5721,167.08,166.93,68.8654]
[1717072186506,16.5721,167.08,166.96,2.2159]
[1717072186507,2.2153,167.02,166.96,2.2159]
[1717072186713,2.2151,167.03,166.95,6.91]
[1717072186928,6.91,167.01,166.98,2.2158]
[1717072187233,6.91,167.02,166.98,2.2158]
[1717072188110,6.2169,167.07,166.97,113.97]
[1717072188323,6.2169,167.07,167.02,2.2152]
[1717072188721,6.91,167.06,167.02,2.2152]
[1717072190014,6.2169,167.07,167.01,2.2154]
[1717072190333,6.91,167.05,167.0,2.2155]
[1717072190540,2.2148,167.06,167.0,2.2155]
[1717072190933,6.3632,167.07,166.99,2.2156]
[1717072191134,6.91,167.01,166.97,2.2159]
[1717072192341,2.2154,167.01,166.93,6.91]
[1717072192511,6.5543,167.04,166.96,2.216]
[1717072192716,2.2153,167.02,166.96,2.216]
[1717072193020,2.2153,167.02,166.97,2.2159]
[1717072193220,6.6446,167.02,166.97,2.2159]
[1717072193532,6.6446,167.02,166.98,2.2158]
[1717072193533,6.91,167.01,166.98,2.2158]
[1717072193738,6.6446,167.02,166.98,2.2158]
[1717072193739,13.5546,167.02,166.98,2.2158]
[1717072194834,2.2151,167.03,166.98,2.2158]
[1717072195236,2.2151,167.03,166.98,9.1258]
[1717072195439,2.2147,167.06,166.99,60.0]
[1717072195647,8.8167,167.07,167.01,2.2153]
[1717072195849,8.8167,167.07,167.02,6.91]
[1717072196034,8.8167,167.07,167.01,9.1253]
[1717072196242,13.5121,167.07,167.01,6.91]
[1717072196565,2.2149,167.05,167.0,2.2155]
[1717072196730,2.2148,167.06,167.0,2.2155]
[1717072196931,2.2148,167.06,167.01,2.2154]
[1717072197127,8.8167,167.07,167.02,2.2152]
[1717072197438,6.6021,167.07,167.02,2.2152]
[1717072197846,8.8167,167.07,167.02,2.2152]
[1717072198050,2.2146,167.07,167.02,2.2152]
[1717072198434,8.4269,167.07,167.02,2.2152]
[1717072198633,2.215,167.05,166.99,2.2156]
[1717072198833,6.3853,167.1,166.95,64.4324]
[1717072199046,6.3853,167.1,166.99,2.2156]
[1717072199047,2.215,167.05,166.99,2.2156]
[1717072199246,6.3853,167.1,166.99,2.2156]
[1717072199548,7.33472617,167.1,166.98,2.2157]
[1717072200339,7.33472617,167.1,166.97,2.2159]
[1717072200645,6.3853,167.1,166.99,2.2156]
[1717072200844,7.33472617,167.1,166.99,2.2156]
[1717072201042,7.33472617,167.1,166.97,95.96]
[1717072201043,6.3853,167.1,166.97,95.96]
[1717072201237,6.3853,167.1,167.0,2.2155]
[1717072201434,7.33472617,167.1,166.99,2.2156]
[1717072201654,7.33472617,167.1,166.97,2.2159]
[1717072201830,7.33472617,167.1,166.88,11.36969332]
[1717072201831,6.3456,167.08,166.9,4.4335]
[1717072202032,6.3012,167.04,166.91,2.2166]
[1717072202243,6.3012,167.04,166.91,95.96]
[1717072202457,6.3012,167.04,166.96,2.216]
[1717072202641,6.3012,167.04,166.95,2.2161]
[1717072202967,2.2159,166.97,166.92,2.2165]
[1717072203255,2.2159,166.97,166.89,60.0]
[1717072203256,8.6126,166.97,166.89,60.0]
[1717072203453,8.6126,166.97,166.92,2.2166]
[1717072203859,6.3966,166.97,166.92,2.2166]
[1717072204060,8.6125,166.97,166.92,2.2166]
[1717072204264,2.2161,166.96,166.91,2.2167]
[1717072204454,2.2164,166.94,166.88,2.217]
[1717072205039,2.2162,166.95,166.88,60.0]
[1717072205251,8.2809,166.96,166.9,2.2168]
[1717072205452,8.2809,166.96,166.85,42.6124]
[1717072205453,16.2453,166.95,166.88,2.2171]
[1717072205655,8.3804,166.94,166.89,2.217]
[1717072205870,34.57259434,167.14,166.94,40.3926]
[1717072205871,0.94942617,167.07,166.94,40.3926]
[1717072206041,2.2153,167.02,166.93,4.4328]
[1717072206239,6.4033,167.06,166.99,2.2156]
[1717072206542,15.2466,167.19,166.97,6.6129]
[1717072206740,15.2466,167.19,166.93,35.96]
[1717072206741,2.2131,167.19,167.1,27.2929]
[1717072206981,6.27584718,167.3,167.15,15.8751]
[1717072206982,2.2124,167.24,167.15,15.8751]
[1717072207147,9.43637335,167.34,167.25,2.2121]
[1717072207459,0.94942617,167.39,167.19,100.386]
[1717072207668,2.212,167.27,167.15,64.4271]
[1717072207845,18.95942617,167.39,167.13,60.0]
[1717072208173,2.2122,167.25,167.18,60.0]
[1717072208335,27.01948219,167.4,167.13,60.0]
[1717072208655,27.01948219,167.4,167.15,18.01]
[1717072208656,69.47390829,167.34,167.15,18.01]
[1717072208971,69.47390829,167.34,167.23,60.0]
[1717072209137,37.98551484,167.39,167.26,2.212]
[1717072209342,6.9145164,167.4,167.26,60.0]
[1717072209641,6.9145164,167.4,167.27,38.1719]
[1717072209892,6.9145164,167.4,167.3,60.0]
[1717072210038,0.8158164,167.4,167.32,2.2113]
[1717072210378,0.8158164,167.4,167.25,62.2122]
[1717072210668,0.8158164,167.4,167.36,2.2107]
[1717072210841,0.8158164,167.4,167.35,62.2108]
[1717072211042,0.8158164,167.4,167.37,2.2106]
[1717072211261,0.8158164,167.4,167.34,60.0]
[1717072211262,0.8158164,167.4,167.34,62.211]
[1717072211454,0.8158164,167.4,167.35,102.354]
[1717072211653,0.8158164,167.4,167.38,60.0]
[1717072211841,0.8158164,167.4,167.38,98.1704]
[1717072212465,0.8158164,167.4,167.39,42.75385574]
[1717072212645,0.8158164,167.4,167.39,35.96]
[1717072213166,0.8158164,167.4,167.39,60.51425574]
[1717072213369,0.8158164,167.4,167.39,53.97]
[1717072213742,0.8158164,167.4,167.39,76.692]
[1717072213941,0.8158164,167.4,167.39,96.692]
[1717072214155,0.8158164,167.4,167.39,76.692]
[1717072214352,0.8158164,167.57,167.44,116.1797]
[1717072214653,0.8158164,167.57,167.51,60.0]
[1717072215058,0.8158164,167.57,167.55,60.0]
[1717072215266,0.8158164,167.57,167.55,62.2082]
[1717072215446,0.8158164,167.57,167.55,120.5947]
[1717072215650,0.8158164,167.57,167.56,75.5637]
[1717072216058,0.8158164,167.57,167.56,95.5637]
[1717072216253,0.8158164,167.57,167.56,155.5637]
[1717072216578,0.8158164,167.57,167.56,62.2081]
[1717072216868,0.8158164,167.57,167.56,60.0]
[1717072218850,0.8158164,167.57,167.44,11.0483]
[1717072219176,0.8158164,167.57,167.51,60.0]
[1717072220055,0.8158164,167.57,167.56,60.0]
[1717072220470,0.8158164,167.57,167.56,78.01]
[1717072220664,0.8158164,167.57,167.56,113.97]
[1717072220852,0.8158164,167.57,167.56,120.512]
[1717072221348,0.8158164,167.73,167.67,60.0]
[1717072221349,3.0218164,167.73,167.67,60.0]
[1717072221589,3.0218164,167.73,167.56,76.0439]
[1717072221590,0.8158164,167.73,167.69,60.0]
[1717072221750,0.8158164,167.73,167.7,60.0]
[1717072221954,0.8158164,167.73,167.65,60.0]
[1717072222175,0.8158164,167.73,167.58,35.96]
[1717072222351,0.8158164,167.73,167.61,60.0]
[1717072222551,0.8158164,167.73,167.47,15.4648]
[1717072222552,0.8158164,167.73,167.59,60.0]
[1717072222747,0.8158164,167.73,167.55,2.2082]
[1717072222748,0.8158164,167.73,167.57,60.0]
[1717072223011,0.8158164,167.73,167.48,22.0129]
[1717072223012,2.2071,167.64,167.56,60.0]
[1717072223295,0.94942617,167.72,167.56,60.0]
[1717072223648,2.2073,167.62,167.56,60.0]
[1717072223874,2.2073,167.62,167.54,60.0]
[1717072224066,0.94942617,167.72,167.52,60.0]
[1717072224577,2.2074,167.62,167.53,60.0]
[1717072224767,0.8158164,167.73,167.57,2.2079]
[1717072224953,0.8158164,167.73,167.58,60.0]
[1717072225260,0.8158164,167.73,167.54,60.0]
[1717072225452,0.8158164,167.73,167.53,60.0]
[1717072225652,0.8158164,167.73,167.56,60.0]
[1717072225865,0.8158164,167.73,167.55,60.0]
[1717072226095,0.8158164,167.73,167.62,60.0]
[1717072226096,2.2064,167.69,167.62,60.0]
[1717072226378,2.206,167.72,167.66,60.0]
[1717072226564,0.8158164,167.73,167.68,60.0]
[1717072226763,0.8158164,167.73,167.67,60.0]
[1717072226961,0.8158164,167.73,167.69,60.0]
[1717072227347,0.8158164,167.73,167.66,60.0]
[1717072227758,0.8158164,167.73,167.64,60.0]
[1717072227957,0.8158164,167.73,167.6,38.1675]
[1717072227958,0.8158164,167.73,167.6,60.0]
[1717072228260,2.2065,167.69,167.61,60.0]
[1717072228463,2.2066,167.68,167.59,60.0]
[1717072228674,0.8158164,167.73,167.6,60.0]
[1717072228875,0.8158164,167.73,167.58,60.0]
[1717072229076,0.8158164,167.73,167.6,60.0]
[1717072229371,0.8158164,167.73,167.65,60.0]
[1717072229582,0.8158164,167.73,167.64,2.2071]
[1717072229583,0.8158164,167.73,167.64,60.0]
[1717072229771,0.8158164,167.73,167.66,60.0]
[1717072229968,0.8158164,167.73,167.64,2.207]
[1717072230169,0.8158164,167.73,167.66,60.0]
[1717072230584,0.8158164,167.73,167.64,60.0]
[1717072230979,0.8158164,167.73,167.61,60.0]
[1717072231381,0.8158164,167.73,167.63,60.0]
[1717072231780,0.8158164,167.73,167.66,60.0]
[1717072232695,0.8158164,167.73,167.68,60.0]
[1717072232879,0.8158164,167.73,167.69,18.01]
[1717072233075,0.8158164,167.73,167.68,60.0]
[1717072233294,0.8158164,167.73,167.66,60.0]
[1717072233484,2.2061,167.71,167.64,60.0]
[1717072233799,0.8158164,167.73,167.57,11.0398]
[1717072233800,0.8158164,167.73,167.69,18.01]
[1717072234096,0.8158164,167.73,167.65,60.0]
[1717072234286,2.2063,167.7,167.63,60.0]
[1717072234472,0.8158164,167.73,167.65,60.0]
[1717072234473,2.2064,167.69,167.65,60.0]
[1717072234674,2.2061,167.72,167.65,60.0]
[1717072234872,2.2063,167.7,167.65,78.01]
[1717072235088,2.2062,167.71,167.63,60.0]
[1717072235374,0.8158164,167.73,167.65,60.0]
[1717072235571,0.8158164,167.73,167.67,60.0]
[1717072235869,0.8158164,167.73,167.67,78.01]
[1717072236070,3.0217164,167.73,167.67,78.01]
[1717072236287,3.0217164,167.73,167.67,113.97]
[1717072236603,0.8158164,167.73,167.71,60.0]
[1717072236899,0.8158164,167.73,167.71,113.97]
[1717072237103,0.8158164,167.73,167.72,116.176]
[1717072237278,0.8158164,167.73,167.72,113.97]
[1717072237473,0.8158164,167.73,167.7,53.97]
[1717072237798,0.8158164,167.73,167.7,35.96]
[1717072238094,0.8158164,167.73,167.69,60.0]
[1717072238503,0.8158164,167.73,167.68,53.97]
[1717072238897,0.8158164,167.73,167.65,62.2069]
[1717072238898,2.206,167.72,167.65,62.2069]
[1717072239103,0.8158164,167.73,167.65,60.0]
[1717072239407,2.206,167.72,167.67,60.0]
[1717072239696,2.206,167.72,167.66,53.97]
[1717072239875,0.8158164,167.73,167.66,35.96]
[1717072240073,0.8158164,167.73,167.65,2.2069]
[1717072240282,0.8158164,167.73,167.64,60.0]
[1717072240600,0.8158164,167.73,167.64,95.96]
[1717072241002,0.8158164,167.73,167.66,95.96]
[1717072241605,0.8158164,167.73,167.67,18.01]
[1717072241779,0.8158164,167.73,167.61,4.4149]
[1717072241780,0.8158164,167.73,167.68,113.97]
[1717072242208,0.8158164,167.73,167.71,113.97]
[1717072242998,0.8158164,167.73,167.71,60.0]
[1717072243304,16.4737,167.85,167.75,35.96]
[1717072243681,2.2051,167.79,167.72,62.206]
[1717072243872,2.2051,167.79,167.73,18.01]
[1717072244074,16.4737,167.85,167.74,95.96]
[1717072244280,16.4737,167.85,167.74,60.0]
[1717072244474,16.4737,167.85,167.69,4.4127]
[1717072244475,2.205,167.8,167.72,62.2059]
[1717072244697,16.4737,167.85,167.7,62.2062]
[1717072245000,16.4737,167.85,167.71,20.2161]
[1717072245201,16.4737,167.85,167.7,60.0]
[1717072245422,16.4737,167.85,167.73,60.0]
[1717072245707,16.4737,167.85,167.71,62.2061]
[1717072245890,16.4737,167.85,167.73,62.2059]
[1717072246203,22.7726,167.85,167.74,35.96]
[1717072246983,1.0,167.87,167.79,78.01]
[1717072247181,1.0,167.87,167.77,95.96]
[1717072247387,1.0,167.87,167.77,98.1653]
[1717072247587,1.0,167.87,167.77,95.96]
[1717072247892,1.0,167.87,167.79,35.96]
[1717072248200,1.0,167.87,167.81,80.2148]
[1717072248393,1.0,167.87,167.79,60.0]
[1717072248700,1.0,167.87,167.77,35.96]
[1717072249279,1.0,167.87,167.74,62.2057]
[1717072249483,1.0,167.87,167.74,35.96]
[1717072249705,1.0,167.87,167.74,95.96]
[1717072249890,1.0,167.87,167.74,35.96]
[1717072250091,1.0,167.87,167.66,4.4134]
[1717072250092,1.0,167.87,167.73,60.0]
[1717072250481,1.0,167.87,167.74,35.96]
[1717072250692,1.0,167.87,167.75,95.96]
[1717072250885,1.0,167.87,167.73,60.0]
[1717072251086,1.0,167.87,167.73,78.01]
[1717072251309,2.2052,167.78,167.69,60.0]
[1717072251520,1.94942617,167.87,167.71,60.0]
[1717072251826,1.0,167.87,167.74,35.96]
[1717072252111,1.0,167.87,167.75,95.96]
[1717072252407,1.0,167.87,167.75,35.96]
[1717072252613,1.0,167.87,167.77,95.96]
[1717072252906,2.2046,167.83,167.77,35.96]
[1717072253107,2.2047,167.82,167.77,35.96]
[1717072253286,6.6099,167.82,167.74,35.96]
[1717072253487,6.6099,167.82,167.74,95.96]
[1717072253695,1.0,167.87,167.74,60.0]
[1717072253696,7.6099,167.87,167.74,60.0]
[1717072254420,2.2051,167.79,167.74,95.96]
[1717072254723,7.6099,167.87,167.74,95.96]
[1717072255028,7.6099,167.87,167.71,60.0]
[1717072255224,0.94942617,167.86,167.69,60.0]
[1717072255432,0.94942617,167.86,167.71,95.96]
[1717072255727,0.94942617,167.86,167.71,35.96]
[1717072255930,6.6099,167.76,167.68,60.0]
[1717072256239,45.94942617,167.86,167.68,78.01]
[1717072256240,15.8251,167.8,167.68,78.01]
[1717072256395,2.2059,167.74,167.68,78.01]
[1717072256595,2.206,167.73,167.68,78.01]
[1717072256797,17.20428969,167.72,167.68,18.01]
[1717072256996,51.60068025,167.71,167.67,60.0]
[1717072257195,51.60068025,167.71,167.59,6.6229]
[1717072257196,51.60068025,167.7,167.64,2.207]
[1717072257420,51.60068025,167.69,167.65,35.96]
[1717072257592,51.60068025,167.68,167.63,60.0]
[1717072257798,2.2065,167.69,167.63,60.0]
[1717072257999,2.2061,167.72,167.64,2.207]
[1717072258297,2.2061,167.72,167.65,87.38643815]
[1717072258496,2.2059,167.73,167.66,56.1767]
[1717072258704,2.2057,167.74,167.67,98.1666]
[1717072258925,2.2057,167.74,167.69,95.96]
[1717072259231,17.20675315,167.79,167.69,95.96]
[1717072259232,2.2059,167.73,167.69,95.96]
[1717072259396,4.4105,167.78,167.69,95.96]
[1717072260025,2.2057,167.74,167.69,95.96]
[1717072260331,15.8251,167.8,167.7,43.12847284]
[1717072260499,2.206,167.73,167.71,7.16857207]
[1717072260694,15.8251,167.8,167.65,60.0]
[1717072260695,2.2063,167.7,167.65,60.0]
[1717072260901,4.4111,167.76,167.66,7.16933071]
[1717072261234,2.2064,167.69,167.67,7.16933071]
[1717072261436,15.8251,167.8,167.68,7.16933071]
[1717072261437,2.2061,167.72,167.68,7.16933071]
[1717072261715,20.2353,167.8,167.7,60.0]
[1717072261929,2.2059,167.74,167.69,35.96]
[1717072262093,4.4106,167.78,167.7,8.08148067]
[1717072262297,4.4106,167.78,167.68,60.0]
[1717072262298,15.8251,167.8,167.71,7.16835477]
[1717072262601,15.8251,167.8,167.61,14.17115389]
[1717072262602,2.2064,167.7,167.65,35.96]
[1717072262805,4.4116,167.74,167.66,103.12849466]
[1717072262806,2.2062,167.71,167.66,103.12849466]
[1717072263109,2.2062,167.71,167.59,15.4542]
[1717072263110,2.2065,167.68,167.67,7.16849466]
[1717072263295,6.0039,167.75,167.67,7.16849466]
[1717072263496,2.2064,167.69,167.68,7.16849466]
[1717072263915,2.2066,167.68,167.64,95.96]
[1717072264113,6.0039,167.75,167.65,7.16962333]
[1717072264315,6.0039,167.75,167.58,63.13405389]
[1717072264519,6.0039,167.75,167.59,7.17063123]
[1717072264520,15.9589,167.73,167.59,7.17063123]
[1717072264705,15.9589,167.73,167.58,60.0]
[1717072264706,2.2072,167.63,167.6,7.17063123]
[1717072264902,4.4136,167.67,167.59,35.96]
[1717072265125,15.9589,167.65,167.54,60.0]
[1717072265304,17.21244798,167.64,167.55,60.0]
[1717072265509,17.21244798,167.64,167.48,15.10450779]
[1717072265510,17.21244798,167.64,167.52,78.01]
[1717072265737,17.21244798,167.64,167.59,60.0]
[1717072265936,17.21244798,167.65,167.54,60.0]
[1717072266137,2.2074,167.62,167.55,2.2082]
[1717072266441,17.21244798,167.63,167.58,60.0]
[1717072266606,17.21244798,167.69,167.6,2.2076]
[1717072266808,17.21244798,167.69,167.53,15.4596]
[1717072266809,17.21244798,167.69,167.45,3.13405389]
[1717072267026,17.21244798,167.69,167.56,60.0]
[1717072267232,17.21244798,167.69,167.54,60.0]
[1717072267423,2.2073,167.63,167.57,60.0]
[1717072267633,17.21244798,167.69,167.55,60.0]
[1717072267933,18.16187415,167.69,167.54,35.96]
[1717072268235,2.2079,167.58,167.54,35.96]
[1717072268649,0.94942617,167.69,167.48,60.0]
[1717072268650,22.3854,167.67,167.48,60.0]
[1717072268817,6.1835,167.65,167.47,35.96]
[1717072269146,2.209,167.5,167.47,35.96]
[1717072269347,2.209,167.49,167.43,60.0]
[1717072269916,6.083,167.54,167.41,60.0]
[1717072270216,6.083,167.54,167.36,16.6335]
[1717072270217,2.2088,167.52,167.45,60.0]
[1717072270428,6.083,167.54,167.42,60.0]
[1717072270643,6.083,167.54,167.44,2.2097]
[1717072270810,6.083,167.54,167.44,60.0]
[1717072271011,8.2915,167.54,167.46,62.2094]
[1717072271213,8.2915,167.54,167.47,2.2092]
[1717072271413,6.083,167.54,167.46,60.0]
[1717072271640,6.083,167.54,167.43,60.0]
[1717072271939,2.2096,167.45,167.41,60.0]
[1717072272139,2.2094,167.47,167.41,60.0]
[1717072272340,6.083,167.54,167.41,60.0]
[1717072272634,6.083,167.54,167.43,60.0]
[1717072272844,6.083,167.54,167.45,60.0]
[1717072273010,6.083,167.54,167.49,60.0]
[1717072273217,15.4146,167.56,167.49,60.0]
[1717072273519,15.4146,167.56,167.36,16.6335]
[1717072273520,15.4146,167.56,167.46,60.0]
[1717072273821,15.4146,167.56,167.43,60.0]
[1717072274025,15.4146,167.56,167.41,60.0]
[1717072274465,6.4828,167.55,167.39,60.0]
[1717072274730,0.94942617,167.54,167.39,60.0]
[1717072274943,6.4828,167.55,167.39,60.0]
[1717072274944,7.43222617,167.55,167.39,60.0]
[1717072275114,0.94942617,167.54,167.39,60.0]
[1717072275315,45.94942617,167.54,167.39,60.0]
[1717072275739,45.0,167.54,167.39,60.0]
[1717072275942,6.4828,167.55,167.39,62.2104]
[1717072276126,6.4828,167.55,167.41,62.21]
[1717072276334,7.43222617,167.55,167.39,60.0]
[1717072276646,45.0,167.54,167.37,62.2106]
[1717072276822,2.2101,167.42,167.37,60.0]
[1717072277218,2.2101,167.42,167.32,0.8158164]
[1717072277219,6.4828,167.55,167.39,60.0]
[1717072277544,6.4828,167.55,167.32,0.8158164]
[1717072277545,6.4828,167.55,167.41,60.0]
[1717072278025,6.4828,167.55,167.42,2.2099]
[1717072278225,6.4828,167.55,167.43,60.0]
[1717072278435,6.4828,167.55,167.38,60.0]
[1717072278623,2.2097,167.44,167.41,60.0]
[1717072278941,6.4828,167.55,167.34,35.96]
[1717072278942,4.418,167.5,167.4,60.0]
[1717072279135,0.94942617,167.54,167.38,60.0]
[1717072279335,2.21,167.42,167.38,60.0]
[1717072279644,57.20273292,167.54,167.4,60.0]
[1717072279820,57.20273292,167.54,167.4,113.97]
[1717072280020,2.2092,167.49,167.42,98.1699]
[1717072280244,6.4828,167.55,167.42,98.1699]
[1717072280245,2.2093,167.48,167.42,98.1699]
[1717072280443,6.4828,167.55,167.41,35.96]
[1717072280648,6.4828,167.55,167.44,95.96]
[1717072280841,2.2093,167.47,167.42,60.0]
[1717072281544,4.4174,167.52,167.42,95.96]
[1717072281752,2.2093,167.48,167.44,35.96]
[1717072281943,2.2091,167.49,167.45,35.96]
[1717072282250,2.2094,167.47,167.42,60.0]
[1717072282433,2.2093,167.47,167.44,60.0]
[1717072282630,2.209,167.5,167.45,35.96]
[1717072283147,2.2091,167.49,167.45,35.96]
[1717072283448,6.4828,167.55,167.45,35.96]
[1717072283449,2.2092,167.48,167.45,35.96]
[1717072283646,6.4828,167.55,167.42,95.96]
[1717072283946,2.2094,167.46,167.42,95.96]
[1717072284151,2.2097,167.44,167.41,35.96]
[1717072284522,2.2097,167.44,167.4,60.0]
[1717072284523,6.22402675,167.54,167.38,95.96]
[1717072285235,4.4189,167.46,167.38,95.96]
[1717072285442,6.22402675,167.54,167.36,2.2107]
[1717072285443,2.2106,167.37,167.36,60.0]
[1717072285760,15.1193,167.45,167.36,60.0]
[1717072285761,4.42,167.42,167.36,60.0]
[1717072286041,6.5211,167.44,167.38,60.0]
[1717072286245,19.5386,167.45,167.39,0.67423013]
[1717072286246,15.1193,167.45,167.39,0.67423013]
[1717072286430,15.1193,167.45,167.36,60.0]
[1717072286431,2.2105,167.38,167.36,60.0]
[1717072286628,2.2104,167.39,167.36,95.96]
[1717072287039,2.2103,167.4,167.36,95.96]
[1717072287358,2.2101,167.41,167.36,95.96]
[1717072287653,2.2102,167.4,167.36,95.96]
[1717072287826,2.2104,167.39,167.36,95.96]
[1717072288026,4.4197,167.43,167.36,95.96]
[1717072288027,8.3549,167.38,167.36,95.96]
[1717072288456,2.2104,167.39,167.36,95.96]
[1717072288626,2.2102,167.4,167.36,95.96]
[1717072288824,2.2101,167.41,167.36,95.96]
[1717072289051,6.1443,167.43,167.36,95.96]
[1717072289236,2.2104,167.39,167.36,95.96]
[1717072289441,6.1443,167.43,167.36,95.96]
[1717072289648,2.2106,167.38,167.36,95.96]
[1717072289846,6.1443,167.43,167.36,95.96]
[1717072289847,2.2104,167.39,167.36,95.96]
[1717072290347,6.1443,167.43,167.36,95.96]
[1717072290550,4.42,167.42,167.36,95.96]
[1717072290941,6.1443,167.43,167.36,95.96]
[1717072290942,2.2103,167.4,167.36,95.96]
[1717072291139,2.2104,167.39,167.36,95.96]
[1717072291349,2.2106,167.38,167.36,95.96]
[1717072291558,4.4202,167.41,167.36,95.96]
[1717072291751,2.2104,167.39,167.36,95.96]
[1717072291955,6.1861,167.4,167.36,95.96]
[1717072292257,2.2104,167.39,167.36,95.96]
[1717072292439,2.2105,167.38,167.36,95.96]
[1717072292845,2.2106,167.37,167.36,95.96]
[1717072293231,6.0503,167.37,167.34,34.16]
[1717072293439,6.0503,167.37,167.32,0.8158164]
[1717072293751,15.0137,167.43,167.31,34.16]
[1717072293752,6.99972617,167.42,167.31,34.16]
[1717072293937,6.99972617,167.42,167.26,60.0]
[1717072294127,2.2118,167.28,167.24,60.0]
[1717072294333,6.99972617,167.42,167.24,60.0]
[1717072294334,2.2117,167.29,167.24,60.0]
[1717072294532,2.2117,167.29,167.25,34.96]
[1717072294743,2.2115,167.31,167.28,60.0]
[1717072294942,2.211,167.34,167.3,60.0]
[1717072295155,6.0503,167.42,167.28,33.96]
[1717072295466,2.2113,167.32,167.28,33.96]
[1717072295628,6.22541936,167.41,167.32,93.96]
[1717072295828,2.211,167.34,167.32,33.96]
[1717072296254,6.0279,167.41,167.32,93.96]
[1717072296655,2.2104,167.39,167.35,93.96]
[1717072296856,6.0279,167.41,167.35,33.96]
[1717072297065,2.2108,167.36,167.32,35.96]
[1717072297364,2.2108,167.36,167.33,95.96]
[1717072297548,6.0279,167.41,167.35,35.96]
[1717072297753,2.2106,167.38,167.35,35.96]
[1717072297954,6.0279,167.41,167.35,35.96]
[1717072298155,2.2104,167.39,167.37,60.0]
[1717072298338,15.0137,167.43,167.37,60.0]
[1717072298339,6.4223,167.46,167.37,60.0]
[1717072298542,6.4223,167.46,167.22,59.26315777]
[1717072298543,6.4223,167.46,167.39,113.97]
[1717072298749,2.2096,167.45,167.42,60.0]
[1717072298948,2.2097,167.44,167.42,60.0]
[1717072299260,65.24411611,167.51,167.41,35.96]
[1717072299261,2.21,167.42,167.41,35.96]
[1717072299466,65.24411611,167.51,167.42,60.0]
[1717072299467,2.2099,167.43,167.42,60.0]
[1717072299838,2.2099,167.43,167.41,35.96]
[1717072300057,2.21,167.42,167.41,35.96]
[1717072300253,65.24411611,167.51,167.41,35.96]
[1717072300254,2.2097,167.44,167.41,53.97]